bitfinex/quotes_BTCUSD_20240817
["timestamp","ask_amount","ask_price","bid_price","bid_amount"]
[1723931137244,0.08435866,59388.0,59387.0,1.7910012]
[1723931137452,0.08435866,59388.0,59387.0,1.66457435]
[1723931141971,0.08435866,59388.0,59387.0,1.66457378]
[1723931142172,0.08435866,59388.0,59387.0,1.76569196]
[1723931142381,0.08435866,59388.0,59387.0,1.66457378]
[1723931142585,0.08435866,59388.0,59387.0,1.80697378]
[1723931143415,0.08435866,59388.0,59387.0,1.90809185]
[1723931146004,0.08435866,59388.0,59387.0,1.76569185]
[1723931146339,0.08435866,59388.0,59387.0,1.29099094]
[1723931146551,0.22495866,59388.0,59387.0,1.76567982]
[1723931146968,0.08435866,59388.0,59387.0,1.76567982]
[1723931147196,0.08435866,59388.0,59387.0,1.66457533]
[1723931148338,0.08435866,59388.0,59387.0,1.57007533]
[1723931148493,0.08435866,59388.0,59387.0,1.66457533]
[1723931149669,0.08435866,59388.0,59387.0,1.72677533]
[1723931151071,0.08435866,59388.0,59387.0,1.66457931]
[1723931154349,0.08435866,59388.0,59387.0,1.74039902]
[1723931154820,0.08435866,59388.0,59387.0,1.76567623]
[1723931155756,0.08435866,59388.0,59387.0,1.765665]
[1723931157285,0.08435866,59388.0,59387.0,1.66457315]
[1723931157688,0.08435866,59388.0,59387.0,1.827865]
[1723931157895,0.14955866,59388.0,59387.0,1.765665]
[1723931158101,0.15975866,59388.0,59387.0,1.765665]
[1723931158316,0.08435866,59388.0,59387.0,1.827865]
[1723931158534,0.15975866,59388.0,59387.0,1.66457315]
[1723931158739,0.08435866,59388.0,59387.0,1.76566621]
[1723931159149,0.08435866,59388.0,59387.0,1.66457315]
[1723931159350,0.08435866,59388.0,59387.0,1.80697315]
[1723931159768,0.08435866,59388.0,59387.0,1.66457315]
[1723931160386,0.08435866,59388.0,59387.0,1.66456974]
[1723931160788,0.08435866,59388.0,59387.0,1.80696974]
[1723931160999,0.08435866,59388.0,59387.0,1.93334023]
[1723931161784,0.08435866,59388.0,59387.0,1.90806781]
[1723931162200,0.08435866,59388.0,59387.0,1.80696974]
[1723931162408,0.08435866,59388.0,59387.0,1.93334023]
[1723931162961,0.08435866,59388.0,59387.0,1.90886991]
[1723931163308,0.08435866,59388.0,59387.0,1.66456974]
[1723931163536,0.08435866,59388.0,59387.0,1.80777226]
[1723931163742,0.08435866,59388.0,59387.0,1.66457226]
[1723931163943,0.08435866,59388.0,59387.0,1.93415129]
[1723931164148,0.08435866,59388.0,59387.0,1.69645129]
[1723931164352,0.08435866,59388.0,59387.0,1.90887999]
[1723931164762,0.08435866,59388.0,59387.0,1.80777226]
[1723931164966,0.08435866,59388.0,59387.0,1.9341527]
[1723931165181,0.08435866,59388.0,59387.0,1.66457226]
[1723931165365,0.08435866,59388.0,59387.0,1.57007226]
[1723931165565,0.08435866,59388.0,59387.0,1.76568358]
[1723931165864,0.08435866,59388.0,59387.0,1.90888358]
[1723931166071,0.08435866,59388.0,59387.0,1.76568358]
[1723931166286,0.08435866,59388.0,59387.0,1.90888358]
[1723931167045,0.08435866,59388.0,59387.0,1.81438358]
[1723931167250,0.08435866,59388.0,59387.0,1.90888358]
[1723931167706,0.08435866,59388.0,59387.0,1.80777226]
[1723931167912,0.08435866,59388.0,59387.0,1.80777208]
[1723931168084,0.08435866,59388.0,59387.0,1.93416706]
[1723931168268,0.08435866,59388.0,59387.0,1.93416635]
[1723931168675,0.08435866,59388.0,59387.0,1.80777208]
[1723931169337,0.08435866,59388.0,59387.0,1.66457208]
[1723931169652,0.08435866,59388.0,59387.0,1.93417153]
[1723931170008,0.08435866,59388.0,59387.0,1.80777208]
[1723931170406,0.08435866,59388.0,59387.0,1.934174]
[1723931170614,0.08435866,59388.0,59387.0,1.80777208]
[1723931171864,0.08435866,59388.0,59387.0,1.93417646]
[1723931172256,0.08435866,59388.0,59387.0,1.80777208]
[1723931174308,0.08435866,59388.0,59387.0,1.71327208]
[1723931174485,0.08435866,59388.0,59387.0,1.80777208]
[1723931175854,0.08435866,59388.0,59387.0,2.06035208]
[1723931177020,0.08435866,59388.0,59387.0,2.06032909]
[1723931190626,0.08435866,59388.0,59387.0,1.59227094]
[1723931190834,0.08435866,59388.0,59387.0,2.06033388]
[1723931192940,0.07935866,59388.0,59387.0,2.06033388]
[1723931194828,0.07935866,59388.0,59387.0,1.97983388]
[1723931195041,0.07935866,59388.0,59387.0,1.88533388]
[1723931195243,0.00824,59390.0,59389.0,0.884002]
[1723931195447,0.00824,59390.0,59389.0,1.42911948]
[1723931195647,0.00824,59390.0,59389.0,1.55549437]
[1723931195847,0.08594,59390.0,59389.0,1.55549437]
[1723931196460,0.08594,59390.0,59389.0,1.56549437]
[1723931196661,0.00824,59390.0,59389.0,1.65999437]
[1723931196862,0.15054,59390.0,59389.0,1.67399437]
[1723931198051,0.15054,59390.0,59389.0,1.57949437]
[1723931198247,0.15054,59390.0,59389.0,1.67399437]
[1723931198550,0.00824,59390.0,59389.0,1.67399437]
[1723931199507,0.08768,59390.0,59389.0,1.67400859]
[1723931200006,0.08768,59390.0,59389.0,1.54761586]
[1723931200233,0.08768,59390.0,59389.0,1.69151586]
[1723931204459,0.08768,59390.0,59389.0,1.69151635]
[1723931208433,0.08768,59390.0,59389.0,1.61191635]
[1723931212532,0.08768,59390.0,59389.0,1.62221867]
[1723931213762,0.08768,59390.0,59389.0,1.55791867]
[1723931217383,0.08768,59390.0,59389.0,1.62031867]
[1723931218136,0.08768,59390.0,59389.0,1.62031736]
[1723931221175,0.08768,59390.0,59389.0,1.55791736]
[1723931221713,0.08768,59390.0,59389.0,1.5579147]
[1723931226057,0.22508,59390.0,59389.0,1.5579147]
[1723931226901,0.08768,59390.0,59389.0,1.6240147]
[1723931231367,0.08768,59390.0,59389.0,1.7240147]
[1723931235512,0.08768,59390.0,59389.0,1.72401724]
[1723931242956,0.08768,59390.0,59389.0,1.72401996]
[1723931245380,0.08768,59390.0,59389.0,1.72402099]
[1723931248290,0.08768,59390.0,59389.0,1.71371867]
[1723931253749,0.08768,59390.0,59389.0,1.64761867]
[1723931254257,0.08768,59390.0,59389.0,1.64761341]
[1723931254464,0.08768,59390.0,59389.0,1.64761437]
[1723931257774,0.22808,59390.0,59389.0,1.64761437]
[1723931258128,0.16798,59390.0,59389.0,1.64761437]
[1723931258340,0.08768,59390.0,59389.0,1.64761437]
[1723931261433,0.08768,59390.0,59389.0,1.55311437]
[1723931261604,0.08768,59390.0,59389.0,1.64761437]
[1723931263458,0.08768,59390.0,59389.0,1.64761989]
[1723931268599,0.22898,59390.0,59389.0,1.64761989]
[1723931269874,0.22898,59390.0,59389.0,1.77409142]
[1723931270074,0.22898,59390.0,59389.0,1.7740887]
[1723931270495,0.22898,59390.0,59389.0,1.64761989]
[1723931272255,0.08768,59390.0,59389.0,1.64761989]
[1723931283425,0.23248,59390.0,59389.0,0.024]
[1723931284930,0.23248,59390.0,59389.0,0.014]
[1723931285139,0.23248,59390.0,59389.0,0.02]
[1723931285140,0.358763,59390.0,59389.0,0.02]
[1723931285347,0.358763,59390.0,59389.0,0.006]
[1723931285561,0.358763,59390.0,59388.0,0.0009064]
[1723931285770,0.1448,59389.0,59388.0,0.0009064]
[1723931286182,0.271086,59389.0,59388.0,0.0009064]
[1723931286800,0.271086,59389.0,59388.0,0.0019064]
[1723931287211,0.77623,59389.0,59388.0,0.0079064]
[1723931288070,0.77623,59389.0,59388.0,0.0009064]
[1723931288266,0.77623,59389.0,59388.0,0.0049064]
[1723931288547,0.77623,59389.0,59388.0,0.0069064]
[1723931289110,1.028802,59389.0,59388.0,0.0069064]
[1723931289317,1.1537262,59389.0,59388.0,0.0069064]
[1723931289529,1.1537262,59389.0,59388.0,0.0049064]
[1723931290367,1.1537262,59389.0,59388.0,0.0009064]
[1723931290481,1.028802,59389.0,59388.0,0.0009064]
[1723931290696,1.04720912,59389.0,59388.0,0.0009064]
[1723931293460,1.14170912,59389.0,59388.0,0.0009064]
[1723931293980,1.14270912,59389.0,59388.0,0.0009064]
[1723931297287,2.02599768,59389.0,59388.0,0.0009064]
[1723931297490,2.23910283,59389.0,59388.0,0.0009064]
[1723931297692,2.14888065,59389.0,59388.0,0.0009064]
[1723931298228,2.27332978,59389.0,59388.0,0.0009064]
[1723931298545,2.24906709,59389.0,59388.0,0.0029064]
[1723931298910,2.14888065,59389.0,59388.0,0.0029064]
[1723931299119,2.14788065,59389.0,59388.0,0.0009064]
[1723931299325,2.05338065,59389.0,59388.0,0.0019064]
[1723931299529,2.14988065,59389.0,59388.0,0.0019064]
[1723931299736,2.14788065,59389.0,59388.0,0.0019064]
[1723931299917,2.15188065,59389.0,59388.0,0.0019064]
[1723931300165,2.25201705,59389.0,59388.0,0.0019064]
[1723931300392,2.22693248,59389.0,59388.0,0.0019064]
[1723931300614,2.22693248,59389.0,59388.0,0.0009064]
[1723931301069,2.25493248,59389.0,59388.0,0.0019064]
[1723931301275,2.15943248,59389.0,59388.0,0.0009064]
[1723931301509,2.15943248,59389.0,59388.0,0.0019064]
[1723931301510,2.17988065,59389.0,59388.0,0.0019064]
[1723931301732,2.19388065,59389.0,59388.0,0.0019064]
[1723931302372,2.24388485,59389.0,59388.0,0.0019064]
[1723931303921,2.19388065,59389.0,59388.0,0.0019064]
[1723931304123,2.15395515,59389.0,59388.0,0.0019064]
[1723931304658,2.33145515,59389.0,59388.0,0.0019064]
[1723931305024,2.37137759,59389.0,59388.0,0.0019064]
[1723931305177,2.42138179,59389.0,59388.0,0.0019064]
[1723931305379,2.42220679,59389.0,59388.0,0.0019064]
[1723931305591,2.42216835,59389.0,59388.0,0.0019064]
[1723931305751,2.37220259,59389.0,59388.0,0.0019064]
[1723931306157,2.42216835,59389.0,59388.0,0.0019064]
[1723931306422,2.37895359,59389.0,59388.0,0.0019064]
[1723931308236,2.33695359,59389.0,59388.0,0.0009064]
[1723931308447,2.36495359,59389.0,59388.0,0.0009064]
[1723931309718,1.284074,59368.0,59367.0,0.0505121]
[1723931309923,1.39995921,59368.0,59367.0,0.0505121]
[1723931310200,1.49995921,59368.0,59367.0,0.0009064]
[1723931310415,1.65005513,59368.0,59367.0,0.0009064]
[1723931310621,1.51535513,59368.0,59367.0,0.0009064]
[1723931310842,1.45975921,59368.0,59367.0,0.0009064]
[1723931311048,1.47375921,59368.0,59367.0,0.0009064]
[1723931311279,1.48775921,59368.0,59367.0,0.0009064]
[1723931311487,1.47375921,59368.0,59367.0,0.0009064]
[1723931311696,1.48775921,59368.0,59367.0,0.0009064]
[1723931311903,1.64065513,59368.0,59367.0,0.0009064]
[1723931321099,1.64365513,59368.0,59367.0,0.0009064]
[1723931326357,1.68360952,59368.0,59367.0,0.0009064]
[1723931333505,1.60670952,59368.0,59367.0,0.0009064]
[1723931336275,1.85937052,59368.0,59367.0,0.0009064]
[1723931337949,1.85737052,59368.0,59367.0,0.0009064]
[1723931338333,1.85937052,59368.0,59367.0,0.0009064]
[1723931340503,1.90919323,59368.0,59367.0,0.0009064]
[1723931341402,1.85937052,59368.0,59367.0,0.0009064]
[1723931341560,1.93410459,59368.0,59367.0,0.0009064]
[1723931342165,1.7044746,59368.0,59367.0,0.0795064]
[1723931342364,1.7064746,59368.0,59367.0,0.0795064]
[1723931342565,1.78159698,59368.0,59367.0,0.0795064]
[1723931342777,1.80612003,59368.0,59367.0,0.0795064]
[1723931342986,1.97767457,59368.0,59367.0,0.0795064]
[1723931343182,1.87802914,59368.0,59367.0,0.0795064]
[1723931343540,1.97820024,59368.0,59367.0,0.0795064]
[1723931343943,1.97820024,59368.0,59367.0,0.0009064]
[1723931344265,2.00463467,59368.0,59367.0,0.0009064]
[1723931344481,2.02967745,59368.0,59367.0,0.0009064]
[1723931344627,1.90446357,59368.0,59367.0,0.0009064]
[1723931350714,1.98506357,59368.0,59367.0,0.0009064]
[1723931351032,1.98706357,59368.0,59367.0,0.0009064]
[1723931351496,2.13744169,59368.0,59367.0,0.0009064]
[1723931352277,2.05684169,59368.0,59367.0,0.0009064]
[1723931352483,2.04846357,59368.0,59367.0,0.0009064]
[1723931352901,2.04646357,59368.0,59367.0,0.0009064]
[1723931353110,1.90446357,59368.0,59367.0,0.0009064]
[1723931353533,2.04646357,59368.0,59367.0,0.0009064]
[1723931353660,2.04746357,59368.0,59367.0,0.0009064]
[1723931353866,2.04846357,59368.0,59367.0,0.0009064]
[1723931354069,2.03446357,59368.0,59367.0,0.0009064]
[1723931354271,2.04846357,59368.0,59367.0,0.0009064]
[1723931354678,2.03446357,59368.0,59367.0,0.0009064]
[1723931355444,2.20363895,59368.0,59367.0,0.0009064]
[1723931355639,2.03446357,59368.0,59367.0,0.0009064]
[1723931355843,2.20414805,59368.0,59367.0,0.0009064]
[1723931356315,2.21814805,59368.0,59367.0,0.0009064]
[1723931356728,2.21814442,59368.0,59367.0,0.0009064]
[1723931357148,2.04846357,59368.0,59367.0,0.0009064]
[1723931357348,2.21814362,59368.0,59367.0,0.0009064]
[1723931357704,2.04846357,59368.0,59367.0,0.0009064]
[1723931357917,2.24114362,59368.0,59367.0,0.0009064]
[1723931359134,2.07146357,59368.0,59367.0,0.0009064]
[1723931361103,2.24113041,59368.0,59367.0,0.0009064]
[1723931361753,2.24113233,59368.0,59367.0,0.0009064]
[1723931362284,2.44916357,59368.0,59367.0,0.0009064]
[1723931363633,1.95790903,59368.0,59367.0,0.1415064]
[1723931363964,1.93490903,59368.0,59367.0,0.1415064]
[1723931364172,1.68224803,59368.0,59367.0,0.1415064]
[1723931364471,1.68224803,59368.0,59367.0,0.0641064]
[1723931366869,1.82736814,59368.0,59367.0,0.0641064]
[1723931367077,1.85380264,59368.0,59367.0,0.0641064]
[1723931367946,1.3827481,59368.0,59367.0,0.1415064]
[1723931368128,1.4538136,59368.0,59367.0,0.1415064]
[1723931368335,1.51014945,59368.0,59367.0,0.1415064]
[1723931368740,1.60264945,59368.0,59367.0,0.1415064]
[1723931368949,1.56298837,59368.0,59367.0,0.1415064]
[1723931369162,1.51014945,59368.0,59367.0,0.1415064]
[1723931369383,1.3593136,59368.0,59367.0,0.1415064]
[1723931369792,1.3573136,59368.0,59367.0,0.1415064]
[1723931370217,1.3563136,59368.0,59367.0,0.1415064]
[1723931370397,1.3593136,59368.0,59367.0,0.1415064]
[1723931370803,1.52079168,59368.0,59367.0,0.1415064]
[1723931371425,1.51879168,59368.0,59367.0,0.1415064]
[1723931371853,1.3573136,59368.0,59367.0,0.1415064]
[1723931373809,1.3593136,59368.0,59367.0,0.1415064]
[1723931374678,1.3573136,59368.0,59367.0,0.1415064]
[1723931376561,1.3593136,59368.0,59367.0,0.1415064]
[1723931376758,1.3573136,59368.0,59367.0,0.1415064]
[1723931376959,1.3593136,59368.0,59367.0,0.1415064]
[1723931377369,1.3573136,59368.0,59367.0,0.1415064]
[1723931377607,1.5185826,59368.0,59367.0,0.1415064]
[1723931377819,1.2593136,59368.0,59367.0,0.1415064]
[1723931378137,1.3518136,59368.0,59367.0,0.1415064]
[1723931378339,1.44941484,59368.0,59367.0,0.1415064]
[1723931378915,1.19475384,59368.0,59367.0,0.1415064]
[1723931379117,1.19375384,59368.0,59367.0,0.1415064]
[1723931381306,1.0681526,59368.0,59367.0,0.1415064]
[1723931381507,0.69960639,59368.0,59367.0,0.1415064]
[1723931381710,0.44694539,59368.0,59367.0,0.1415064]
[1723931382156,0.54740914,59368.0,59367.0,0.1415064]
[1723931383076,0.53340914,59368.0,59367.0,0.1415064]
[1723931383608,0.026,59368.0,59367.0,0.1415064]
[1723931384243,0.13833,59368.0,59367.0,0.1415064]
[1723931384571,0.012,59368.0,59367.0,0.1415064]
[1723931384902,0.022,59368.0,59367.0,0.2678384]
[1723931385533,0.022,59368.0,59367.0,0.5205034]
[1723931385810,0.022,59368.0,59367.0,0.7731684]
[1723931385811,0.012,59368.0,59367.0,0.7731684]
[1723931387027,0.126319,59374.0,59373.0,0.0629]
[1723931387221,0.126319,59374.0,59373.0,0.1446]
[1723931388445,0.156315,59375.0,59372.0,0.1446]
[1723931388646,0.126315,59375.0,59373.0,0.0817]
[1723931388848,0.126315,59375.0,59374.0,0.1446]
[1723931389454,0.378946,59375.0,59374.0,0.1446]
[1723931389681,0.126315,59375.0,59374.0,0.1446]
[1723931389887,0.126312,59377.0,59374.0,0.270917]
[1723931390083,0.126312,59377.0,59375.0,0.1446]
[1723931390286,0.0945,59379.0,59377.0,0.0817]
[1723931390510,0.378927,59378.0,59377.0,0.1446]
[1723931390786,0.126309,59378.0,59377.0,0.1446]
[1723931391622,0.378927,59378.0,59377.0,0.1446]
[1723931391852,0.382927,59378.0,59377.0,0.1446]
[1723931392290,0.388927,59378.0,59377.0,0.1446]
[1723931393287,0.01,59378.0,59377.0,0.1446]
[1723931393496,0.136309,59378.0,59377.0,0.1446]
[1723931394076,0.388927,59378.0,59377.0,0.1446]
[1723931394896,0.136309,59378.0,59377.0,0.1446]
[1723931395312,0.388927,59378.0,59377.0,0.1446]
[1723931395731,0.136309,59378.0,59377.0,0.1446]
[1723931396294,0.388927,59378.0,59377.0,0.1446]
[1723931396447,0.136309,59378.0,59377.0,0.1446]
[1723931396649,0.388927,59378.0,59377.0,0.1446]
[1723931396896,0.136309,59378.0,59377.0,0.1446]
[1723931397077,0.388927,59378.0,59377.0,0.1446]
[1723931402509,0.136309,59378.0,59377.0,0.1446]
[1723931403685,0.388927,59378.0,59377.0,0.1446]
[1723931409627,0.01,59378.0,59377.0,0.1446]
[1723931411095,0.01,59378.0,59377.0,0.1455075]
[1723931417016,0.388927,59378.0,59377.0,0.1455075]
[1723931419243,0.136309,59378.0,59377.0,0.1455075]
[1723931419414,0.388927,59378.0,59377.0,0.1455075]
[1723931420697,0.136309,59378.0,59377.0,0.1455075]
[1723931422900,0.01,59378.0,59377.0,0.1455075]
[1723931423053,0.136309,59378.0,59377.0,0.1455075]
[1723931426112,0.01,59378.0,59377.0,0.1455075]
[1723931426743,0.01,59378.0,59377.0,0.2718185]
[1723931427629,0.006,59378.0,59377.0,0.2718185]
[1723931427836,0.006,59378.0,59377.0,0.94861904]
[1723931428666,0.126296,59385.0,59383.0,0.0786]
[1723931430541,0.127296,59385.0,59383.0,0.0786]
[1723931431369,0.127296,59385.0,59384.0,0.0623]
[1723931432369,0.126296,59385.0,59384.0,0.0623]
[1723931432746,0.127296,59385.0,59384.0,0.0623]
[1723931433177,0.127296,59385.0,59384.0,0.1409]
[1723931435714,0.127296,59385.0,59384.0,0.1418064]
[1723931436465,0.127294,59385.0,59384.0,0.1418064]
[1723931438425,0.001,59385.0,59384.0,0.1418064]
[1723931438671,0.001,59385.0,59384.0,0.5206954]
[1723931439703,0.001,59385.0,59384.0,0.8677884]
[1723931440500,0.001,59385.0,59384.0,0.6151954]
[1723931442180,0.001,59385.0,59384.0,0.8677884]
[1723931442500,0.001,59385.0,59384.0,0.6151954]
[1723931442707,0.001,59385.0,59384.0,0.78674994]
[1723931443416,0.001,59385.0,59384.0,1.03934294]
[1723931455243,0.001,59385.0,59384.0,1.29193594]
[1723931455445,0.001,59385.0,59384.0,1.03934294]
[1723931456053,0.001,59385.0,59384.0,1.29193594]
[1723931456459,0.001,59385.0,59384.0,1.03934294]
[1723931456626,0.002,59385.0,59384.0,1.03934294]
[1723931456850,0.001,59385.0,59384.0,1.03934294]
[1723931457022,0.002,59385.0,59384.0,1.04234294]
[1723931457916,0.002,59385.0,59384.0,1.29493594]
[1723931480403,0.00826,59391.0,59390.0,0.37885]
[1723931480523,0.00826,59391.0,59390.0,0.47335]
[1723931481943,0.00826,59391.0,59390.0,0.61755]
[1723931482759,0.00826,59391.0,59390.0,0.47335]
[1723931482957,0.002,59391.0,59390.0,0.47335]
[1723931488447,0.002,59391.0,59390.0,0.725917]
[1723931489503,0.002,59391.0,59390.0,0.870117]
[1723931492244,0.002,59391.0,59390.0,0.787717]
[1723931492643,0.002,59391.0,59390.0,0.867417]
[1723931494638,0.002824,59391.0,59390.0,0.867417]
[1723931500182,0.002824,59391.0,59390.0,1.03897154]
[1723931504571,0.002824,59391.0,59390.0,1.29153854]
[1723931506832,0.002824,59391.0,59390.0,1.29244494]
[1723931512647,0.002824,59391.0,59390.0,1.03987794]
[1723931516318,0.002824,59391.0,59390.0,0.94537794]
[1723931516518,0.002824,59391.0,59390.0,1.03987794]
[1723931524727,0.002824,59391.0,59390.0,0.89837794]
[1723931531494,0.002824,59391.0,59390.0,0.98157794]
[1723931532255,0.002824,59391.0,59390.0,0.89837794]
[1723931532484,0.142324,59391.0,59390.0,0.89837794]
[1723931532735,0.002824,59391.0,59390.0,0.89837794]
[1723931535748,0.142324,59391.0,59390.0,0.89837794]
[1723931536505,0.080724,59391.0,59390.0,0.89837794]
[1723931537692,0.080724,59391.0,59390.0,0.80387794]
[1723931537848,0.080724,59391.0,59390.0,0.6323234]
[1723931539902,0.080724,59391.0,59390.0,0.3797564]
[1723931545912,0.002824,59391.0,59390.0,0.3797564]
[1723931546113,0.002824,59391.0,59390.0,0.1271894]
[1723931550721,0.002824,59391.0,59390.0,0.3797564]
[1723931551314,0.002824,59391.0,59390.0,0.4742564]
[1723931551515,0.002824,59391.0,59390.0,0.3797564]
[1723931552120,0.002824,59391.0,59390.0,0.5217564]
[1723931552649,0.002824,59391.0,59390.0,0.1271894]
[1723931552650,0.084924,59391.0,59390.0,0.1271894]
[1723931553056,0.084924,59391.0,59390.0,0.3797564]
[1723931553641,0.002824,59391.0,59390.0,0.3797564]
[1723931556504,0.149024,59391.0,59390.0,0.0009064]
[1723931556866,0.275305,59391.0,59390.0,0.0009064]
[1723931560124,0.211205,59391.0,59390.0,0.0009064]
[1723931560529,0.084924,59391.0,59390.0,0.0009064]
[1723931564312,0.002824,59391.0,59390.0,0.0009064]
[1723931571075,0.150524,59391.0,59390.0,0.0009064]
[1723931571684,0.002824,59391.0,59390.0,0.1271894]
[1723931578016,0.002824,59391.0,59390.0,0.3797564]
[1723931580845,0.002824,59391.0,59390.0,0.1271894]
[1723931584545,0.002824,59391.0,59390.0,0.3797564]
[1723931586632,0.002824,59391.0,59390.0,0.3698564]
[1723931587411,0.080324,59391.0,59388.0,0.252573]
[1723931587565,0.080324,59391.0,59386.0,0.0629]
[1723931587566,0.002824,59391.0,59390.0,0.126283]
[1723931588376,0.002824,59391.0,59390.0,0.37885]
[1723931588489,0.000824,59391.0,59390.0,0.37885]
[1723931588690,0.002824,59391.0,59390.0,0.37885]
[1723931589105,0.000824,59391.0,59390.0,0.37885]
[1723931589502,0.002824,59391.0,59390.0,0.37885]
[1723931594354,0.002824,59391.0,59390.0,1.29083854]
[1723931594791,0.002824,59391.0,59390.0,1.34141192]
[1723931595003,0.002824,59391.0,59390.0,1.36669861]
[1723931595206,0.000824,59391.0,59390.0,1.36669861]
[1723931595425,0.000824,59391.0,59390.0,1.34541061]
[1723931595426,0.001824,59391.0,59390.0,1.34541061]
[1723931595616,0.002824,59391.0,59390.0,1.34541013]
[1723931596235,0.002824,59391.0,59390.0,1.74429548]
[1723931596410,0.002824,59391.0,59390.0,1.7442909]
[1723931596616,0.002824,59391.0,59390.0,1.29483854]
[1723931597305,0.002824,59391.0,59390.0,1.37069559]
[1723931597502,0.002824,59391.0,59390.0,1.29483854]
[1723931598448,0.002824,59391.0,59390.0,1.3453844]
[1723931600317,0.002824,59391.0,59390.0,1.3462908]
[1723931600521,0.002824,59391.0,59390.0,2.04490478]
[1723931600725,0.002824,59391.0,59390.0,2.14604752]
[1723931600906,0.002824,59391.0,59390.0,2.1713332]
[1723931601323,0.001824,59391.0,59390.0,2.1673332]
[1723931601520,0.002824,59391.0,59390.0,2.04490478]
[1723931601723,0.002824,59391.0,59390.0,2.1713332]
[1723931601925,0.001824,59391.0,59390.0,2.1713332]
[1723931602339,0.002824,59391.0,59390.0,2.15674935]
[1723931602684,0.002824,59391.0,59390.0,2.05573184]
[1723931602894,0.001824,59391.0,59390.0,2.05173184]
[1723931603153,0.000824,59391.0,59390.0,2.17716026]
[1723931603575,0.001824,59391.0,59390.0,2.15273013]
[1723931604438,0.002824,59391.0,59390.0,2.06373184]
[1723931604649,0.002824,59391.0,59390.0,2.16473013]
[1723931605488,0.002824,59391.0,59390.0,2.06373184]
[1723931606499,0.002824,59391.0,59390.0,2.06370303]
[1723931607773,0.002824,59391.0,59390.0,2.16467814]
[1723931610533,0.002824,59391.0,59390.0,2.06370303]
[1723931611353,0.002824,59391.0,59390.0,2.16467814]
[1723931611909,0.002824,59391.0,59390.0,2.16567814]
[1723931612111,0.00824,59398.0,59397.0,1.027983]
[1723931612390,0.00824,59398.0,59397.0,1.3444899]
[1723931612601,0.00824,59398.0,59397.0,1.64657554]
[1723931612796,0.00824,59398.0,59397.0,2.11876364]
[1723931613379,0.00824,59398.0,59397.0,1.74525408]
[1723931613582,0.01024,59398.0,59397.0,1.76025408]
[1723931613788,0.01024,59398.0,59397.0,1.75125408]
[1723931614144,0.00924,59398.0,59397.0,1.74525408]
[1723931614362,0.01024,59398.0,59397.0,1.68157554]
[1723931614978,0.00924,59398.0,59397.0,1.68357554]
[1723931615221,0.00924,59398.0,59397.0,1.68157554]
[1723931615421,0.00924,59398.0,59397.0,1.73198922]
[1723931616228,0.00924,59398.0,59397.0,1.74598922]
[1723931617308,0.00924,59398.0,59397.0,1.69557554]
[1723931617484,0.00924,59398.0,59397.0,1.70557785]
[1723931620461,0.00924,59398.0,59397.0,1.70657785]
[1723931621482,0.00924,59398.0,59397.0,1.75695999]
[1723931621963,0.00924,59398.0,59397.0,1.79141143]
[1723931622151,0.00924,59398.0,59397.0,1.71581785]
[1723931623526,0.00924,59398.0,59397.0,1.76619277]
[1723931624130,0.00924,59398.0,59397.0,1.71581785]
[1723931627717,0.00924,59398.0,59397.0,1.76618381]
[1723931628898,0.00924,59398.0,59397.0,1.71581785]
[1723931630024,0.00924,59398.0,59397.0,1.76618453]
[1723931630211,0.00924,59398.0,59397.0,1.71581785]
[1723931630429,0.00924,59398.0,59397.0,1.79136679]
[1723931630867,0.00924,59398.0,59397.0,1.79336679]
[1723931631359,0.00924,59398.0,59397.0,2.1688543]
[1723931632049,0.00924,59398.0,59397.0,2.1668543]
[1723931632445,0.00924,59398.0,59397.0,2.1688543]
[1723931633682,0.00924,59398.0,59397.0,2.1648543]
[1723931634517,0.00924,59398.0,59397.0,2.08930536]
[1723931635618,0.00924,59398.0,59397.0,2.44257528]
[1723931637531,0.00924,59398.0,59397.0,2.34184336]
[1723931637743,0.00924,59398.0,59397.0,2.34384336]
[1723931638265,0.00924,59398.0,59397.0,2.34584336]
[1723931638468,0.00924,59398.0,59397.0,2.47175827]
[1723931638619,0.00924,59398.0,59397.0,2.46775827]
[1723931640489,0.00924,59398.0,59397.0,2.34184336]
[1723931645885,0.00924,59398.0,59397.0,2.34384336]
[1723931646057,0.00924,59398.0,59397.0,2.34184336]
[1723931646259,0.00924,59398.0,59397.0,2.34384336]
[1723931647053,0.00924,59398.0,59397.0,2.34584336]
[1723931647598,0.00924,59398.0,59397.0,2.34184336]
[1723931649748,0.00924,59398.0,59397.0,2.34384336]
[1723931650365,0.00924,59398.0,59397.0,2.34184336]
[1723931650569,0.00924,59398.0,59397.0,2.34384336]
[1723931650884,0.00924,59398.0,59397.0,2.34184336]
[1723931652162,0.00924,59398.0,59397.0,2.08930536]
[1723931652575,0.00924,59398.0,59397.0,2.24040325]
[1723931652955,0.00924,59398.0,59397.0,2.49294125]
[1723931653701,0.00924,59398.0,59397.0,2.49694125]
[1723931654912,0.00924,59398.0,59397.0,2.49294125]
[1723931655111,0.00924,59398.0,59397.0,2.39844125]
[1723931655435,0.00924,59398.0,59397.0,2.34184336]
[1723931656318,0.00924,59398.0,59397.0,2.34384336]
[1723931656561,0.00924,59398.0,59397.0,2.34184336]
[1723931656766,0.00826,59405.0,59397.0,2.34184336]
[1723931656767,0.00826,59405.0,59404.0,1.137286]
[1723931656938,0.00826,59405.0,59404.0,2.07461683]
[1723931657144,0.00826,59405.0,59404.0,2.54592265]
[1723931657316,0.00826,59405.0,59404.0,2.56892265]
[1723931658300,0.00826,59405.0,59404.0,2.04602805]
[1723931658622,0.00826,59405.0,59404.0,2.06002805]
[1723931658829,0.00826,59405.0,59404.0,2.07402805]
[1723931659364,0.00826,59405.0,59404.0,2.22560853]
[1723931659534,0.00826,59405.0,59404.0,2.07402805]
[1723931661752,0.00826,59405.0,59404.0,1.97652805]
[1723931661925,0.00826,59405.0,59404.0,2.07102805]
[1723931662329,0.00826,59405.0,59404.0,2.07097545]
[1723931664263,0.00826,59405.0,59404.0,1.92677545]
[1723931664618,0.00826,59405.0,59404.0,2.06877545]
[1723931664944,0.00826,59405.0,59404.0,2.0799707]
[1723931666572,0.00826,59405.0,59404.0,2.0819707]
[1723931667795,0.00826,59405.0,59404.0,2.0789707]
[1723931668408,0.00826,59405.0,59404.0,2.0799707]
[1723931668608,0.00826,59405.0,59404.0,2.0789707]
[1723931669145,0.00826,59405.0,59404.0,2.0799707]
[1723931669350,0.00826,59405.0,59404.0,2.3364787]